[Event "XII Cracow ICC-A 2024"]
[Site "Krakow"]
[Date "2024.06.24"]
[Round "4.1"]
[White "Fier, Alexandr"]
[Black "Gumularz, Szymon"]
[Result "0-1"]
[ECO "D15"]
[WhiteElo "2602"]
[BlackElo "2593"]
[Annotator "TA"]
[PlyCount "78"]
[EventDate "2024.06.20"]
[EventType "swiss"]
[EventCountry "POL"]
[SourceTitle "playchess.com"]
[Source "ChessBase"]
[SourceQuality "1"]
[TimeControl "40/5400+30:1800+30"]

{[%evp 11,78,-30,-28,-15,-25,-36,12,-14,-16,-69,-62,-58,-25,-46,-53,-40,-52,-111,-120,-99,-67,-52,-75,-121,-106,-140,-125,-295,-275,-271,-284,-293,-190,-204,-199,-220,-283,-284,-296,-270,-301,-298,-264,-272,-281,-301,-290,-306,-311,-318,-307,-306,-302,-360,-363,-383,-381,-506,-489,-510,-495,-547,-544,-551,-545,-598,-596,-679,-661]} 1. d4 {[%emt 0:00:30]} d5 {[%emt 0:00:09]} 2. c4 {[%emt 0:00:05]} c6 {[%emt 0:00:02]} 3. Nf3 {[%emt 0:03:38]} Nf6 {[%emt 0:00:17]} 4. Nc3 {[%emt 0:00:04]} dxc4 {[%emt 0:00:13]} 5. e4 {[%emt 0:00:04]} b5 {[%emt 0:00:23]} 6. Be2 {[%emt 0:00:05] D15: Slav Defence: 4 Nc3 a6 and gambit lines after 4 Nc3 dxc4.} e6 {[%emt 0:04:27]} 7. O-O {[%emt 0:00:06]} Bb7 {[%emt 0:15:36]} 8. Rb1 {[%emt 0:00:12] is now more promising than 8.b3.} Qc8 $146 {[%emt 0:16:42]} (8... Nbd7 $15) ({Predecessor:} 8... Qc7 9. a3 a5 10. a4 b4 11. e5 Nfd7 12. Ne4 c5 13. Ned2 cxd4 14. Nxc4 Nc6 {1-0 Aravindh,C (2671)-Srihari,L (2491) Dubai Police op-A 2024 (2)}) 9. Qc2 {[%emt 0:16:43]} Nbd7 {[%emt 0:02:58]} 10. a3 {[%emt 0:07:31]} (10. Re1 $11) 10... a6 $15 {[%emt 0:02:42]} 11. Rd1 {[%emt 0:03:03]} h6 {[%emt 0:01:41]} 12. Bf4 {[%emt 0:04:36]} Be7 {[%emt 0:00:27]} 13. b3 {[%emt 0:00:27]} cxb3 {[%emt 0:00:11]} (13... Bxa3 14. bxc4 O-O 15. c5 $16) 14. Rxb3 {[%emt 0:00:04]} ({White should try} 14. Qxb3 $15 O-O 15. a4) 14... c5 $1 $17 {[%emt 0:10:06]} 15. d5 {[%emt 0:00:10]} c4 {[%emt 0:00:42]} 16. Rbb1 {[%emt 0:00:05]} O-O $1 {[%emt 0:03:03]} (16... Bxa3 $6 17. dxe6 fxe6 18. e5 $14) 17. d6 {[%emt 0:04:49]} ({Better is} 17. a4) 17... Bd8 $17 {[%emt 0:00:32]} 18. a4 {[%emt 0:00:04] [#]} Ba5 $1 {[%emt 0:02:29]} 19. axb5 $2 {[%emt 0:16:22]} (19. e5 $17 Bxc3 20. Qxc3) 19... Bxc3 $19 {[%emt 0:00:42]} 20. Qxc3 {[%emt 0:00:03]} Bxe4 {[%emt 0:00:31]} 21. Rb4 {[%emt 0:07:59]} Nd5 {[%emt 0:03:08]} 22. Qxc4 {[%emt 0:00:44]} Nxb4 {[%emt 0:02:00]} ({But not} 22... Qxc4 23. Rxc4 Nxf4 (23... axb5 24. Rxe4 Nc3 25. Rdd4 $14) 24. Rxe4 $17) 23. Qxe4 {[%emt 0:06:23] [#]} Nd5 $1 {[%emt 0:00:16]} 24. Rc1 {[%emt 0:04:06]} Nc3 {[%emt 0:00:32]} 25. Qe3 {[%emt 0:00:03]} Nxe2+ {[%emt 0:00:04]} 26. Qxe2 {[%emt 0:00:02]} Qb7 {[%emt 0:00:45]} 27. bxa6 {[%emt 0:00:04]} ({Reject} 27. Rc7 Qxb5 28. Qxb5 axb5 $19) 27... Qxa6 {[%emt 0:00:13]} 28. Qd2 {[%emt 0:01:12]} Qa5 {[%emt 0:03:27]} 29. Qxa5 {[%emt 0:01:24]} Rxa5 {[%emt 0:00:05]} 30. h3 {[%emt 0:00:26]} e5 {[%emt 0:01:11]} 31. Be3 {[%emt 0:01:57]} Rd5 {[%emt 0:00:14]} 32. Rc6 {[%emt 0:00:04]} f5 {[%emt 0:01:35]} 33. g3 {[%emt 0:00:20]} Rf6 {[%emt 0:00:44]} 34. Nh4 {[%emt 0:00:05]} g5 {[%emt 0:00:53]} 35. Nf3 {[%emt 0:00:04]} Rfxd6 {[%emt 0:00:32]} 36. Rc7 {[%emt 0:00:05]} Kf7 {[%emt 0:08:25]} 37. Kg2 {[%emt 0:00:05]} Kg6 {[%emt 0:00:27]} 38. Bc1 {[%emt 0:00:15]} e4 {[%emt 0:00:20]} 39. Ng1 {[%emt 0:00:09]} Rc5 {[%emt 0:01:27]} 0-1

[Event "XII Cracow ICC-A 2024"]
[Site "Krakow"]
[Date "2024.06.24"]
[Round "4.2"]
[White "Vetoshko, Volodymyr"]
[Black "Rozentalis, Eduardas"]
[Result "1/2-1/2"]
[ECO "A18"]
[WhiteElo "2505"]
[BlackElo "2476"]
[Annotator "RC"]
[PlyCount "34"]
[EventDate "2024.06.20"]
[EventType "swiss"]
[EventCountry "POL"]
[SourceTitle "playchess.com"]
[Source "ChessBase"]
[SourceQuality "1"]
[TimeControl "40/5400+30:1800+30"]

1. c4 {[%emt 0:01:09]} e6 {[%emt 0:00:40]} 2. Nc3 {[%emt 0:00:19]} Nf6 {[%emt 0:02:02]} 3. e4 {[%emt 0:00:43]} d5 {[%emt 0:01:21]} 4. cxd5 {[%emt 0:01:13]} exd5 {[%emt 0:00:15]} 5. e5 {[%emt 0:00:15]} Ne4 {[%emt 0:00:23]} 6. Nf3 {[%emt 0:00:59]} c6 {[%emt 0:04:36]} 7. d3 {[%emt 0:00:31]} Nxc3 {[%emt 0:01:16]} 8. bxc3 {[%emt 0:00:01]} Be7 {[%emt 0:02:50]} 9. d4 {[%emt 0:00:33]} Bf5 {[%emt 0:00:50]} 10. Bd3 {[%emt 0:00:06]} Bxd3 {[%emt 0:03:37]} 11. Qxd3 {[%emt 0:00:02]} Na6 {[%emt 0:00:44]} 12. O-O {[%emt 0:02:10]} Nc7 {[%emt 0:01:16]} 13. Rb1 {[%emt 0:13:01]} b5 {[%emt 0:04:15]} 14. Ne1 {[%emt 0:02:32]} O-O {[%emt 0:01:02]} 15. f4 {[%emt 0:05:27]} f5 {[%emt 0:00:53]} 16. Nc2 {[%emt 0:01:23]} g6 {[%emt 0:04:47]} 17. Ne3 {[%emt 0:04:14]} Ne6 {[%emt 0:01:05]} 1/2-1/2

[Event "XII Cracow ICC-A 2024"]
[Site "Krakow"]
[Date "2024.06.24"]
[Round "4.3"]
[White "Kosakowski, Jakub"]
[Black "Sieciechowicz, Marcin"]
[Result "1/2-1/2"]
[ECO "C07"]
[WhiteElo "2480"]
[BlackElo "2405"]
[Annotator "TA"]
[PlyCount "77"]
[EventDate "2024.06.20"]
[EventType "swiss"]
[EventCountry "POL"]
[SourceTitle "playchess.com"]
[Source "ChessBase"]
[SourceQuality "1"]
[TimeControl "40/5400+30:1800+30"]

{[%evp 11,77,24,20,-9,0,-22,15,16,10,-32,22,-39,63,0,35,-9,-9,-8,0,-9,-3,0,11,16,22,0,0,0,0,0,2,0,0,0,0,0,0,0,0,0,0,0,0,0,0,0,0,0,0,0,0,0,0,0,0,0,0,-4,-4,-4,0,0,0,0,-8,-8,0,-8]} 1. e4 {[%emt 0:00:02]} e6 {[%emt 0:01:11]} 2. d4 {[%emt 0:00:16]} d5 {[%emt 0:00:07]} 3. Nd2 {[%emt 0:00:19]} c5 {[%emt 0:00:16]} 4. Ngf3 {[%emt 0:00:34]} cxd4 {[%emt 0:00:20]} 5. exd5 {[%emt 0:00:23]} Qxd5 {[%emt 0:00:24]} 6. Bc4 {[%emt 0:00:14]} Qd6 {[%emt 0:00:24]} 7. Ne4 {[%emt 0:00:49][%mdl 1024] Against Nf6. White has compensation.} Qb4+ {[%emt 0:02:42]} 8. Nfd2 {[%emt 0:01:02]} Nd7 {[%emt 0:06:51]} 9. O-O {[%emt 0:02:23]} Ngf6 {[%emt 0:00:57] [#] aiming for ...Nxe4.} 10. c3 {[%emt 0:07:49]} Qb6 {[%emt 0:02:58]} ({Better is} 10... dxc3 $15 11. bxc3 Qa5) 11. Re1 {[%emt 0:05:07]} (11. Bb3 $11) 11... h6 {[%emt 0:20:14]} (11... dxc3 $15 12. Nxc3 Bb4) 12. cxd4 {[%emt 0:06:25] White is more active.} (12. Bb3 $1 $14) 12... Be7 {[%emt 0:06:11]} 13. Ng3 {[%emt 0:07:03][%cal Od4d5] d5! would now be deadly.} Qxd4 {[%emt 0:12:53] The position is equal.} 14. Qe2 $1 {[%emt 0:07:53][%cal Og3f5]} O-O {[%emt 0:06:44]} 15. Bxe6 {[%emt 0:11:41] [#] Hoping for Nf5.} Bb4 {[%emt 0:09:02]} (15... fxe6 $6 16. Qxe6+ Kh8 (16... Rf7 $2 17. Nf5 $18) 17. Nf3 $16 (17. Qxe7 Re8 $15)) 16. Bb3 {[%emt 0:35:19]} Nc5 {[%emt 0:01:24] And now ...Bg4 would win.} 17. Nf3 {[%emt 0:00:30]} Qd3 {[%emt 0:02:33]} 18. Qxd3 {[%emt 0:00:06]} Nxd3 {[%emt 0:00:07]} 19. Rd1 {[%emt 0:00:03]} Nxc1 {[%emt 0:01:12]} 20. Raxc1 {[%emt 0:00:06][%cal Ba1c1,Bc1c7,Bc7e7][%mdl 32]} Bg4 {[%emt 0:02:31]} 21. Rc7 {[%emt 0:03:03]} Rab8 {[%emt 0:00:28]} 22. Rd4 {[%emt 0:03:23]} Bxf3 $1 {[%emt 0:00:57]} ({But not} 22... Ba5 $6 23. Rxf7 Rxf7 24. Ne5 $16 (24. Bxf7+ Kxf7 25. Ne5+ Ke6 $11)) 23. gxf3 {[%emt 0:03:04]} Ba5 {[%emt 0:00:16]} 24. Re7 {[%emt 0:00:06]} Bd8 {[%emt 0:00:46]} 25. Re2 {[%emt 0:00:34]} Bb6 {[%emt 0:00:46]} 26. Rd3 {[%emt 0:00:20]} Rfe8 {[%emt 0:01:06]} 27. Ne4 {[%emt 0:03:56]} Nxe4 {[%emt 0:00:49]} 28. Rxe4 {[%emt 0:01:00]} Rxe4 {[%emt 0:00:32]} 29. fxe4 $11 {[%emt 0:00:04][%mdl 4096] Endgame. KRB-KRB} Rd8 {[%emt 0:00:19] Prevents Rd7.} 30. Bd5 {[%emt 0:00:49]} Kf8 {[%emt 0:02:03]} 31. Kg2 {[%emt 0:00:05]} Rc8 {[%emt 0:02:39]} 32. b4 {[%emt 0:01:27]} Rc2 {[%emt 0:04:30]} 33. Rf3 $1 {[%emt 0:00:04]} f6 {[%emt 0:00:42]} 34. a4 {[%emt 0:00:37]} Rb2 {[%emt 0:00:54]} 35. b5 {[%emt 0:00:47]} a6 {[%emt 0:01:25]} 36. Bxb7 {[%emt 0:00:29]} axb5 {[%emt 0:01:34]} 37. axb5 {[%emt 0:00:04]} Rxb5 {[%emt 0:00:09][%cal Ob6f2]} 38. Bd5 {[%emt 0:00:04]} Ke7 {[%emt 0:00:42]} 39. Rb3 {[%emt 0:00:06] Weighted Error Value: White=0.12 (very precise) /Black=0.11 (very precise) .  Mistake:       	White=2     	Black=2      Inaccurate:     	White=2     	Black=2      OK:         	White=11    	Black=16     Strong:       	White=2     	Black=1} 1/2-1/2

[Event "XII Cracow ICC-A 2024"]
[Site "Krakow"]
[Date "2024.06.24"]
[Round "4.4"]
[White "Mirzoev, Azer"]
[Black "Karolczuk, Iwo"]
[Result "1/2-1/2"]
[ECO "D38"]
[WhiteElo "2448"]
[BlackElo "2293"]
[Annotator "TA"]
[PlyCount "83"]
[EventDate "2024.06.20"]
[EventType "swiss"]
[EventCountry "POL"]
[SourceTitle "playchess.com"]
[Source "ChessBase"]
[SourceQuality "1"]
[TimeControl "40/5400+30:1800+30"]

{[%evp 12,83,5,12,0,-2,0,0,-8,-16,-10,-15,-14,-11,0,0,7,-12,0,0,0,0,0,0,10,0,0,0,0,0,0,0,0,0,0,-6,-9,-12,0,0,0,0,0,0,0,-13,0,0,0,0,0,0,0,0,0,0,0,0,2,0,13,11,29,0,1,0,4,6,18,0,0,0,1,0]} 1. d4 {[%emt 0:03:24]} Nf6 {[%emt 0:00:14]} 2. Nf3 {[%emt 0:00:12]} d5 {[%emt 0:00:31]} 3. c4 {[%emt 0:00:04]} e6 {[%emt 0:00:23]} 4. Nc3 {[%emt 0:00:09]} Bb4 {[%emt 0:00:17]} 5. Qa4+ {[%emt 0:00:09]} Nc6 {[%emt 0:00:07]} 6. a3 {[%emt 0:00:17]} Bxc3+ {[%emt 0:01:18]} 7. bxc3 {[%emt 0:00:03]} O-O {[%emt 0:00:28]} 8. cxd5 {[%emt 0:01:21]} exd5 {[%emt 0:00:16]} 9. Bg5 {[%emt 0:00:09]} h6 {[%emt 0:04:08]} 10. Bxf6 {[%emt 0:00:06]} Qxf6 {[%emt 0:00:08]} 11. e3 {[%emt 0:00:03]} b6 {[%emt 0:18:49]} 12. Be2 {[%emt 0:02:10]} Bb7 {[%emt 0:00:16]} 13. O-O {[%emt 0:00:15]} Rfe8 {[%emt 0:03:39]} 14. Rfc1 {[%emt 0:05:00]} Re7 {[%emt 0:08:19]} 15. c4 {[%emt 0:08:26]} dxc4 {[%emt 0:02:27]} 16. Qxc4 {[%emt 0:00:08]} Na5 {[%emt 0:02:42]} 17. Qb4 {[%emt 0:04:07]} Rd8 {[%emt 0:02:34]} 18. h3 {[%emt 0:02:18]} Bd5 {[%emt 0:05:37]} 19. Rab1 {[%emt 0:04:24] Against Nb3} Nb7 {[%emt 0:08:34]} 20. Rd1 {[%emt 0:20:53]} c5 {[%emt 0:08:16]} 21. dxc5 {[%emt 0:01:34]} Nxc5 {[%emt 0:01:39]} 22. Qd4 {[%emt 0:05:18]} Qxd4 {[%emt 0:01:26]} 23. Rxd4 {[%emt 0:00:35] [#] Strongly threatening Rbd1.} Ne6 {[%emt 0:00:13]} 24. Rd2 {[%emt 0:01:00] Hoping for Rbd1.} Be4 {[%emt 0:05:12]} 25. Rxd8+ {[%emt 0:00:13]} Nxd8 {[%emt 0:00:05]} 26. Rc1 {[%emt 0:01:01]} Ne6 {[%emt 0:02:18][%cal Bd8e6,Be6c5,Bc5e4][%mdl 32]} 27. Rc8+ {[%emt 0:00:22]} Kh7 {[%emt 0:00:05]} 28. Bc4 {[%emt 0:02:08]} Bxf3 {[%emt 0:01:15]} 29. gxf3 $11 {[%emt 0:00:08][%mdl 4096] Endgame. KRB-KRN} Nc5 {[%emt 0:00:11]} 30. f4 {[%emt 0:01:09]} g6 {[%emt 0:00:19]} 31. Kg2 {[%emt 0:00:13]} Kg7 {[%emt 0:00:12]} 32. h4 {[%emt 0:00:38]} Ne4 {[%emt 0:01:15]} 33. Bd3 {[%emt 0:01:07]} Nc5 {[%emt 0:01:00]} 34. Bb5 {[%emt 0:02:36]} Ne4 {[%emt 0:02:02]} 35. Rc6 {[%emt 0:00:52] Repels Nd6} Nf6 {[%emt 0:02:15]} 36. Kf3 {[%emt 0:02:47]} Ne4 {[%emt 0:00:33]} 37. Bd3 {[%emt 0:02:12]} Nd2+ {[%emt 0:00:38] The position is equal.} 38. Ke2 {[%emt 0:01:44]} Ne4 {[%emt 0:00:27]} 39. Bc2 {[%emt 0:00:31]} Nf6 {[%emt 0:00:57]} 40. Bb3 {[%emt 0:03:57]} Ne4 {[%emt 0:00:41]} 41. Bc2 {[%emt 0:35:14]} Nf6 {[%emt 0:30:25]} 42. Bb3 {An interesting draw.   Weighted Error Value: White=0.03 (flawless) /Black=0.03 (flawless) .  Inaccurate:     	White=1     	---        OK:         	White=20    	Black=15} 1/2-1/2

[Event "XII Cracow ICC-A 2024"]
[Site "Krakow"]
[Date "2024.06.24"]
[Round "4.5"]
[White "Kelires, Andreas"]
[Black "Keleberda, Tymur"]
[Result "1/2-1/2"]
[ECO "B54"]
[WhiteElo "2515"]
[BlackElo "2223"]
[Annotator "TA"]
[PlyCount "84"]
[EventDate "2024.06.20"]
[EventType "swiss"]
[EventCountry "POL"]
[SourceTitle "playchess.com"]
[Source "ChessBase"]
[SourceQuality "1"]
[TimeControl "40/5400+30:1800+30"]

{[%evp 9,84,0,0,0,11,8,22,13,27,31,24,35,29,46,48,39,45,41,56,51,44,48,48,52,48,32,41,32,39,47,66,69,73,59,72,56,85,65,133,126,150,135,152,159,151,137,141,71,68,46,45,44,41,60,78,92,95,78,102,43,113,103,231,242,228,239,194,18,31,0,0,0,0,0,0,0,0]} 1. e4 {[%emt 0:00:08]} c5 {[%emt 0:00:14]} 2. Nf3 {[%emt 0:00:09]} d6 {[%emt 0:00:11]} 3. d4 {[%emt 0:00:08]} cxd4 {[%emt 0:00:07]} 4. Nxd4 {[%emt 0:00:06]} Nf6 {[%emt 0:00:05][%cal Bg8f6,Bf6d7,Bd7c5][%mdl 32]} 5. Bd3 {[%emt 0:00:06]} g6 {[%emt 0:05:25]} 6. c4 {[%emt 0:00:31]} Bg7 {[%emt 0:00:27]} 7. Nc3 {[%emt 0:00:34]} Nc6 {[%emt 0:00:50]} 8. Nde2 {[%emt 0:00:57]} O-O {[%emt 0:04:04]} 9. O-O {[%emt 0:00:14]} Nd7 {[%emt 0:03:55]} 10. b3 {[%emt 0:05:22]} Nc5 {[%emt 0:00:46]} 11. Be3 {[%emt 0:09:02]} f5 {[%emt 0:02:31]} 12. exf5 {[%emt 0:02:27]} Nxd3 {[%emt 0:02:14]} 13. Qxd3 {[%emt 0:00:05]} Bxf5 {[%emt 0:00:06]} 14. Qd2 {[%emt 0:01:02]} Rf7 {[%emt 0:05:12]} 15. Nd4 {[%emt 0:08:43]} Qa5 {[%emt 0:03:37]} 16. Rac1 {[%emt 0:03:26]} Bd7 {[%emt 0:01:27]} 17. f3 {[%emt 0:08:06]} Raf8 {[%emt 0:12:39]} 18. Nxc6 {[%emt 0:19:15]} bxc6 {[%emt 0:10:54]} 19. Bd4 {[%emt 0:02:42]} Qf5 {[%emt 0:01:37]} 20. Bxg7 {[%emt 0:02:05]} (20. Bxa7 c5 21. Ne2 Qh5 $16) 20... Rxg7 {[%emt 0:00:26]} 21. Rce1 {[%emt 0:02:53]} g5 {[%emt 0:01:29]} 22. Ne4 {[%emt 0:01:42][%cal Oc4c5]} h5 {[%emt 0:10:34]} 23. Rf2 {[%emt 0:05:02]} h4 {[%emt 0:04:01]} (23... Bc8 $14) 24. h3 $16 {[%emt 0:01:15]} Qf4 {[%emt 0:00:38]} 25. Qa5 {[%emt 0:03:06]} Bf5 {[%emt 0:05:00]} 26. Qxa7 {[%emt 0:04:31] White is more active.} d5 {[%emt 0:00:05]} 27. cxd5 {[%emt 0:00:14]} cxd5 {[%emt 0:00:05]} 28. Nd2 {[%emt 0:04:44]} (28. Nc5 $142) 28... e6 {[%emt 0:01:43]} 29. Qb6 {[%emt 0:01:19][%cal Od2e4]} (29. Qa5 $5) 29... Rb8 {[%emt 0:04:33]} 30. Qa6 {[%emt 0:01:17]} Rc7 {[%emt 0:02:46]} 31. Nf1 {[%emt 0:01:42]} Rc1 {[%emt 0:07:31]} 32. Rxc1 {[%emt 0:04:36]} Qxc1 {[%emt 0:00:06]} 33. Qd6 {[%emt 0:00:21]} Rc8 {[%emt 0:00:12]} 34. b4 {[%emt 0:04:16]} (34. f4 $16) 34... Qb1 {[%emt 0:02:38]} (34... Qf4 $14 35. Qxf4 gxf4) 35. f4 {[%emt 0:02:24]} g4 {[%emt 0:02:00]} (35... gxf4 $16 {was necessary.} 36. Rxf4 (36. Qxf4 Rc4 $18) 36... Rc4 37. Rxc4 dxc4) 36. hxg4 $18 {[%emt 0:00:04]} Bxg4 {[%emt 0:00:04]} 37. Qe7 {[%emt 0:02:32] Strongly threatening Qg5+.} Bf5 {[%emt 0:04:30][%cal Bg4f5,Bf5g6,Bg6d3][%mdl 32] [#]} 38. Qxh4 $2 {[%emt 0:00:53]} ({White must play} 38. g4 $1 $18 {[%cal Rg4f5]} hxg3 39. Rf3) 38... Rc1 {[%emt 0:00:39][%cal Oc1e1]} 39. Rf3 {[%emt 0:00:59]} Kf7 {[%emt 0:01:11] Dodges Qf6+. The position is equal.} 40. Qh5+ {[%emt 0:00:53]} Bg6 {[%emt 0:01:03]} 41. Qe5 {[%emt 0:09:36][%cal Of4f5] f5! would now be deadly.} Bd3 {[%emt 0:01:56][%cal Rc1f1]} 42. Kh2 {[%emt 0:01:35]} Rxf1 {[%emt 0:00:33] Weighted Error Value: White=0.11 (very precise) /Black=0.13 (very precise) .  Missed win:     	White=1     	---        Mistake:       	White=2     	Black=3      Inaccurate:     	White=1     	---        OK:         	White=16    	Black=13     Best:        	White=2     	Black=1} 1/2-1/2

[Event "XII Cracow ICC-A 2024"]
[Site "Krakow"]
[Date "2024.06.24"]
[Round "4.6"]
[White "Suder, Jakub"]
[Black "Moussard, Jules"]
[Result "0-1"]
[ECO "C07"]
[WhiteElo "2328"]
[BlackElo "2610"]
[Annotator "TA"]
[PlyCount "108"]
[EventDate "2024.06.20"]
[EventType "swiss"]
[EventCountry "POL"]
[SourceTitle "playchess.com"]
[Source "ChessBase"]
[SourceQuality "1"]
[TimeControl "40/5400+30:1800+30"]

{[%evp 28,108,0,0,0,0,0,0,0,0,0,0,7,16,0,1,10,0,0,0,0,0,0,-14,-8,-9,-4,-28,-14,-22,-29,-31,-23,-22,-22,-41,-33,-40,-22,-59,-52,-68,-76,-73,-69,-104,-111,-106,-116,-114,-116,-164,-177,-168,-127,-412,-411,-343,-199,-159,-189,-287,-187,-154,-164,-172,-127,-379,-368,-334,-264,-290,-235,-415,-390,-446,-436,-886,-888,-1311,-1279,-992,-895]} 1. e4 {[%emt 0:06:42]} e6 {[%emt 0:02:59]} 2. d4 {[%emt 0:00:09]} d5 {[%emt 0:00:04]} 3. Nd2 {[%emt 0:03:21]} c5 {[%emt 0:01:46]} 4. exd5 {[%emt 0:00:52]} Qxd5 {[%emt 0:00:09]} 5. Ngf3 {[%emt 0:00:25]} cxd4 {[%emt 0:00:13]} 6. Bc4 {[%emt 0:00:13]} Qd6 {[%emt 0:00:41]} 7. O-O {[%emt 0:01:20]} Nf6 {[%emt 0:00:05]} 8. Nb3 {[%emt 0:01:53]} Nc6 {[%emt 0:00:15]} 9. Nbxd4 {[%emt 0:01:19]} Nxd4 {[%emt 0:00:29]} 10. Qxd4 {[%emt 0:01:16]} Qxd4 {[%emt 0:00:27]} 11. Nxd4 {[%emt 0:00:06]} Bd7 {[%emt 0:00:17]} 12. Bf4 {[%emt 0:04:37]} Rc8 {[%emt 0:09:02]} 13. Bb3 {[%emt 0:02:43]} Bc5 {[%emt 0:02:24]} 14. Rad1 {[%emt 0:00:29]} O-O {[%emt 0:02:24]} 15. Rfe1 {[%emt 0:04:10]} Rfd8 {[%emt 0:01:27] C07: French Tarrasch: 3...c5, 4 Ngf3 and 4 exd5 Qxd5.} 16. c3 {[%emt 0:03:53]} b5 {[%emt 0:02:47]} 17. h3 {[%emt 0:04:18]} h6 {[%emt 0:09:34]} 18. Be3 $146 {[%emt 0:03:45]} ({Predecessor:} 18. Nc2 a5 19. a3 a4 20. Ba2 Bc6 21. Be3 Rxd1 22. Rxd1 Be4 23. Bb1 Bxc2 24. Bxc2 Bxe3 25. fxe3 Nd5 26. Kf2 Nb6 27. Bd3 Rd8 28. Bh7+ {1-0 Burnoiu,N (2434)-Malakhatko,V (2612) Bucharest Romgaz op 2nd 2008 (7)}) 18... Kf8 {[%emt 0:12:38]} 19. Nc2 {[%emt 0:05:18]} a5 {[%emt 0:04:20] ...a4 would now be deadly.} 20. Bxc5+ {[%emt 0:01:41]} Rxc5 {[%emt 0:00:02]} 21. a3 {[%emt 0:01:53]} Ke7 {[%emt 0:03:15]} (21... a4 $5 22. Ba2 $8 Ke7 $11) 22. Rd4 {[%emt 0:03:38]} Bc6 {[%emt 0:04:56]} (22... a4 $5 23. Ba2 $8 Bc8 $11) 23. Rxd8 {[%emt 0:02:50]} Kxd8 {[%emt 0:00:04]} 24. Nd4 {[%emt 0:01:50][%cal Ob3e6] aiming for Bxe6!} Bd7 {[%emt 0:00:36]} 25. Nf3 {[%emt 0:03:12]} Ke7 {[%emt 0:02:41]} 26. Ne5 {[%emt 0:04:13]} Be8 {[%emt 0:01:38]} 27. Ba2 {[%emt 0:01:56]} Kd6 {[%emt 0:04:21]} 28. Nd3 {[%emt 0:01:05]} Rc7 {[%emt 0:02:18]} 29. Rd1 {[%emt 0:00:59]} Ke7 {[%emt 0:02:06]} 30. Ne5 {[%emt 0:04:06]} Ne4 {[%emt 0:01:37]} 31. Bb1 {[%emt 0:01:04]} Nd6 {[%emt 0:03:04]} 32. Re1 {[%emt 0:06:48]} f6 {[%emt 0:03:31]} 33. Nd3 {[%emt 0:03:53]} g5 {[%emt 0:00:32] Repels Nf4} 34. Bc2 {[%emt 0:02:45]} Bg6 {[%emt 0:02:57]} 35. Re2 {[%emt 0:05:32]} Nc4 {[%emt 0:02:50]} 36. Nf4 {[%emt 0:04:38]} gxf4 {[%emt 0:00:35]} (36... Nxb2 $2 {is the wrong capture.} 37. Nd5+ (37. Nxg6+ Kf7 $16) (37. Bxg6 gxf4 38. Rxb2 Rxc3 $18) (37. Rxe6+ Kd7 $11) 37... Kd7 38. Nxc7 (38. Bxg6 exd5 39. Rxb2 Rc5 $18) 38... Bxc2 39. Nxb5 $18 (39. Rxc2 Nc4 $18)) 37. Bxg6 {[%emt 0:00:05]} Rd7 {[%emt 0:00:15] Prevents Bd3.} 38. Bc2 {[%emt 0:03:30]} a4 {[%emt 0:00:10][%cal Od7d5]} 39. Kh2 {[%emt 0:02:56]} (39. Bf5 $17 {was necessary.} Rd6 40. Kh2) 39... e5 $19 {[%emt 0:06:53]} ({But not} 39... Nxb2 40. Bf5 Rd5 41. Be4 $15) 40. Be4 {[%emt 0:01:08]} Kd6 {[%emt 0:01:03] Inhibits Bc6. ...Kc5 is the strong threat.} 41. g3 $2 {[%emt 0:33:48][%mdl 8192]} (41. Bf5 $17 Re7 42. h4) 41... Kc5 $19 {[%emt 0:35:49]} 42. gxf4 {[%emt 0:00:09]} exf4 {[%emt 0:06:55]} (42... Rd2 $142 43. Rxd2 Nxd2) 43. Bf3 $19 {[%emt 0:00:00]} Rd3 $1 {[%emt 0:00:00]} 44. Bh5 {[%emt 0:00:00]} (44. Bg4 {was worth a try.}) 44... f3 {[%emt 0:00:00]} 45. Re6 {[%emt 0:00:00]} Rd6 {[%emt 0:00:00]} 46. Re8 {[%emt 0:00:00]} Nxb2 {[%emt 0:00:00] And now ...Nc4 would win.} 47. Bxf3 $2 {[%emt 0:00:00][%mdl 8192]} (47. Rc8+ $17 {might work better.} Kb6 48. Rb8+ Ka5 49. Bf7) 47... Nc4 $1 $19 {[%emt 0:00:00]} 48. Rc8+ {[%emt 0:00:00]} Kb6 {[%emt 0:00:00][%cal Ob6a5]} 49. Rb8+ {[%emt 0:00:00] [#]} Ka5 $1 {[%emt 0:00:00]} 50. Ra8+ $2 {[%emt 0:00:00] [#]} (50. Be4) 50... Ra6 $1 $19 {[%emt 0:00:00][%cal Oa6a8] Hoping for ...Rxa8!} 51. Rh8 {[%emt 0:00:00]} Nxa3 {[%emt 0:00:00]} 52. Rxh6 {[%emt 0:00:00]} (52. Be4 $142 Nc4 53. Bb1) 52... Nb1 $19 {[%emt 0:00:00]} 53. c4 {[%emt 0:00:00]} bxc4 {[%emt 0:00:00] Threatens to win with ...a3.} 54. Be2 {[%emt 0:00:00]} Nd2 {[%emt 0:00:00]} 0-1